[Event "*** SCC Grand Prix: Titled Tuesday Blitz"]
[Site "Chess.com"]
[Date "2020.07.07"]
[Round "5"]
[White "Roman_Ovetchkin"]
[Black "TheBigBoss04"]
[Result "0-1"]
[WhiteElo "2576"]
[BlackElo "2752"]
[TimeControl "180+1"]
[EndTime "10:56:00 PDT"]
[Termination "TheBigBoss04 won on time"]

1. d4 {[%clk 0:03:00.9]} 1... Nf6 {[%clk 0:02:59.2]} 2. c4 {[%clk 0:03:00.4]}
2... e6 {[%clk 0:02:59.7]} 3. Nf3 {[%clk 0:02:59.6]} 3... d5 {[%clk 0:02:59.6]}
4. g3 {[%clk 0:02:59.2]} 4... dxc4 {[%clk 0:02:59.5]} 5. Bg2 {[%clk 0:02:58.8]}
5... a6 {[%clk 0:02:59.8]} 6. O-O {[%clk 0:02:58.7]} 6... Nc6 {[%clk 0:03:00.4]}
7. Bg5 {[%clk 0:02:55.2]} 7... Rb8 {[%clk 0:02:58.5]} 8. e3 {[%clk 0:02:34.7]}
8... Be7 {[%clk 0:02:57.6]} 9. Nfd2 {[%clk 0:02:30.1]} 9... e5 {[%clk
0:02:33.1]} 10. Bxf6 {[%clk 0:02:19.4]} 10... Bxf6 {[%clk 0:02:18.9]} 11. d5
{[%clk 0:02:19.3]} 11... Ne7 {[%clk 0:02:06.5]} 12. Nxc4 {[%clk 0:02:17.4]}
12... O-O {[%clk 0:02:03.4]} 13. Nc3 {[%clk 0:02:08]} 13... Nf5 {[%clk
0:01:43.8]} 14. Ne4 {[%clk 0:01:50.4]} 14... Bd7 {[%clk 0:01:29.7]} 15. Rc1
{[%clk 0:01:42.9]} 15... Bb5 {[%clk 0:01:19.6]} 16. b3 {[%clk 0:01:21.3]} 16...
Nd6 {[%clk 0:01:16.3]} 17. a4 {[%clk 0:00:52.7]} 17... Be8 {[%clk 0:00:55.3]}
18. Qc2 {[%clk 0:00:32.1]} 18... Nxe4 {[%clk 0:00:30.6]} 19. Bxe4 {[%clk
0:00:31.3]} 19... g6 {[%clk 0:00:31.3]} 20. Rfd1 {[%clk 0:00:31.7]} 20... Bd7
{[%clk 0:00:28.4]} 21. Na5 {[%clk 0:00:27.9]} 21... Bg4 {[%clk 0:00:10]} 22. f3
{[%clk 0:00:23.9]} 22... Bg5 {[%clk 0:00:07.3]} 23. Kf2 {[%clk 0:00:20.6]} 23...
Qf6 {[%clk 0:00:05.5]} 24. Qxc7 {[%clk 0:00:15.3]} 24... Bxf3 {[%clk 0:00:05.9]}
25. Bxf3 {[%clk 0:00:12.3]} 25... e4 {[%clk 0:00:06.3]} 26. Nc4 {[%clk
0:00:05.4]} 26... Qxf3+ {[%clk 0:00:06.3]} 27. Kg1 {[%clk 0:00:05.1]} 27... b5
{[%clk 0:00:07]} 28. Rf1 {[%clk 0:00:05]} 28... Qe2 {[%clk 0:00:06.3]} 29. Rf2
{[%clk 0:00:04.8]} 29... Qd3 {[%clk 0:00:03.3]} 30. Ne5 {[%clk 0:00:03.7]} 30...
Qxe3 {[%clk 0:00:03.4]} 31. Rf1 {[%clk 0:00:03.2]} 31... Rbc8 {[%clk 0:00:02.4]}
32. Qd7 {[%clk 0:00:03.1]} 32... Rcd8 {[%clk 0:00:02.3]} 33. Qc6 {[%clk
0:00:02.7]} 33... Qd4 {[%clk 0:00:02.7]} 34. Nd7 {[%clk 0:00:02.2]} 34... e3
{[%clk 0:00:02]} 35. Re2 {[%clk 0:00:02]} 35... Qd3 {[%clk 0:00:02]} 36. Rfe1
{[%clk 0:00:01.5]} 36... Kh8 {[%clk 0:00:02.8]} 0-1

[Event "*** SCC Grand Prix: Titled Tuesday Blitz"]
[Site "Chess.com"]
[Date "2020.07.07"]
[Round "5"]
[White "GM4life"]
[Black "stoleriu"]
[Result "0-1"]
[WhiteElo "2359"]
[BlackElo "2592"]
[TimeControl "180+1"]
[EndTime "10:56:00 PDT"]
[Termination "stoleriu won by checkmate"]

1. e4 {[%clk 0:03:00.9]} 1... e6 {[%clk 0:02:58.5]} 2. d4 {[%clk 0:03:00.4]}
2... d5 {[%clk 0:02:59.4]} 3. Nc3 {[%clk 0:03:00.7]} 3... Bb4 {[%clk 0:02:59.3]}
4. e5 {[%clk 0:03:00.8]} 4... c5 {[%clk 0:02:59.5]} 5. a3 {[%clk 0:03:01.1]}
5... Bxc3+ {[%clk 0:03:00.1]} 6. bxc3 {[%clk 0:03:01.9]} 6... Qc7 {[%clk
0:03:01]} 7. Qg4 {[%clk 0:03:02]} 7... f6 {[%clk 0:03:01.4]} 8. f4 {[%clk
0:02:34.4]} 8... cxd4 {[%clk 0:03:00]} 9. Ne2 {[%clk 0:02:34.1]} 9... dxc3
{[%clk 0:02:59.9]} 10. Qg3 {[%clk 0:02:23.1]} 10... Nc6 {[%clk 0:02:57.6]} 11.
Nxc3 {[%clk 0:02:14.8]} 11... fxe5 {[%clk 0:02:56.5]} 12. Nb5 {[%clk 0:02:14]}
12... Qe7 {[%clk 0:01:40]} 13. fxe5 {[%clk 0:02:12.6]} 13... Nh6 {[%clk
0:01:31.1]} 14. Bg5 {[%clk 0:02:11.9]} 14... Nf5 {[%clk 0:01:20]} 15. Qf4 {[%clk
0:01:55.5]} 15... Qc5 {[%clk 0:01:17.1]} 16. Nc7+ {[%clk 0:01:34.3]} 16... Kd7
{[%clk 0:01:17.1]} 17. Nxa8 {[%clk 0:01:26.6]} 17... Qc3+ {[%clk 0:01:17.1]} 18.
Kf2 {[%clk 0:01:25.8]} 18... Qxa1 {[%clk 0:01:15.3]} 19. Bd3 {[%clk 0:00:52.4]}
19... Qxe5 {[%clk 0:00:59]} 20. g4 {[%clk 0:00:48.8]} 20... Qxf4+ {[%clk
0:00:54]} 21. Bxf4 {[%clk 0:00:49.2]} 21... Nfd4 {[%clk 0:00:54.5]} 22. Nc7
{[%clk 0:00:48.2]} 22... e5 {[%clk 0:00:54.3]} 23. Nxd5 {[%clk 0:00:41.7]} 23...
exf4 {[%clk 0:00:53.2]} 24. Nxf4 {[%clk 0:00:39.8]} 24... Rf8 {[%clk 0:00:53.2]}
25. Ke3 {[%clk 0:00:39.2]} 25... g6 {[%clk 0:00:39.3]} 26. Rd1 {[%clk
0:00:38.8]} 26... Kc7 {[%clk 0:00:35.7]} 27. Bc4 {[%clk 0:00:39]} 27... Nxc2+
{[%clk 0:00:31.6]} 28. Ke4 {[%clk 0:00:38.4]} 28... Re8+ {[%clk 0:00:30.2]} 29.
Kf3 {[%clk 0:00:33.3]} 29... Ne5+ {[%clk 0:00:28]} 30. Kg3 {[%clk 0:00:31.3]}
30... Nxc4 {[%clk 0:00:28.3]} 31. Nd5+ {[%clk 0:00:28.5]} 31... Kc6 {[%clk
0:00:28.7]} 32. Rd3 {[%clk 0:00:24.7]} 32... a5 {[%clk 0:00:24.6]} 33. Kh4
{[%clk 0:00:22.2]} 33... N2e3 {[%clk 0:00:18.9]} 34. Nf6 {[%clk 0:00:22.1]}
34... Re7 {[%clk 0:00:16.4]} 35. Kg5 {[%clk 0:00:21.6]} 35... b5 {[%clk
0:00:16.8]} 36. h4 {[%clk 0:00:21.2]} 36... b4 {[%clk 0:00:17.2]} 37. axb4
{[%clk 0:00:20.4]} 37... axb4 {[%clk 0:00:18.1]} 38. Kh6 {[%clk 0:00:21]} 38...
Nxg4+ {[%clk 0:00:17.9]} 39. Nxg4 {[%clk 0:00:20.3]} 39... Bxg4 {[%clk
0:00:18.8]} 40. Rd4 {[%clk 0:00:20.7]} 40... Be6 {[%clk 0:00:19.5]} 41. Re4
{[%clk 0:00:20.7]} 41... b3 {[%clk 0:00:19.2]} 42. Re1 {[%clk 0:00:20.5]} 42...
b2 {[%clk 0:00:19.5]} 43. Rb1 {[%clk 0:00:21]} 43... Bf5 {[%clk 0:00:20.1]} 44.
Rxb2 {[%clk 0:00:20.5]} 44... Nxb2 {[%clk 0:00:21]} 45. Kg5 {[%clk 0:00:20.2]}
45... Nd3 {[%clk 0:00:20.3]} 46. Kh6 {[%clk 0:00:21.1]} 46... Ne1 {[%clk
0:00:20]} 47. h5 {[%clk 0:00:22]} 47... gxh5 {[%clk 0:00:18]} 48. Kxh5 {[%clk
0:00:21.6]} 48... Bg4+ {[%clk 0:00:18.4]} 49. Kh6 {[%clk 0:00:22.5]} 49... Bh5
{[%clk 0:00:15]} 50. Kg5 {[%clk 0:00:23.4]} 50... Rg7+ {[%clk 0:00:14.8]} 51.
Kh6 {[%clk 0:00:24.3]} 51... Rg6+ {[%clk 0:00:15.3]} 52. Kxh5 {[%clk 0:00:24.3]}
52... Kd5 {[%clk 0:00:14.9]} 53. Kh4 {[%clk 0:00:24.7]} 53... Ke4 {[%clk
0:00:15.6]} 54. Kh3 {[%clk 0:00:25.6]} 54... Kf4 {[%clk 0:00:15.7]} 55. Kh2
{[%clk 0:00:26.5]} 55... Kf3 {[%clk 0:00:16.4]} 56. Kh1 {[%clk 0:00:26.9]} 56...
Kf2 {[%clk 0:00:16.8]} 57. Kh2 {[%clk 0:00:26.5]} 57... Rh6# {[%clk 0:00:17.7]}
0-1

[Event "*** SCC Grand Prix: Titled Tuesday Blitz"]
[Site "Chess.com"]
[Date "2020.07.07"]
[Round "5"]
[White "Sanan_Sjugirov"]
[Black "OparinGrigoriy"]
[Result "1/2-1/2"]
[WhiteElo "2824"]
[BlackElo "2945"]
[TimeControl "180+1"]
[EndTime "10:56:02 PDT"]
[Termination "Game drawn by agreement"]

1. d4 {[%clk 0:03:00.9]} 1... Nf6 {[%clk 0:02:59.7]} 2. c4 {[%clk 0:03:00]} 2...
e6 {[%clk 0:03:00.4]} 3. Nf3 {[%clk 0:02:53.4]} 3... d5 {[%clk 0:03:00.2]} 4. g3
{[%clk 0:02:43.9]} 4... dxc4 {[%clk 0:03:00.4]} 5. Bg2 {[%clk 0:02:43.8]} 5...
a6 {[%clk 0:03:01]} 6. O-O {[%clk 0:02:38.4]} 6... Nc6 {[%clk 0:03:01.4]} 7. Be3
{[%clk 0:02:19.7]} 7... Nd5 {[%clk 0:02:53.6]} 8. Qc1 {[%clk 0:02:16.1]} 8...
Be7 {[%clk 0:02:50.6]} 9. Qxc4 {[%clk 0:02:01.2]} 9... Nxe3 {[%clk 0:02:47.5]}
10. fxe3 {[%clk 0:02:02.1]} 10... O-O {[%clk 0:02:47.6]} 11. Nc3 {[%clk
0:02:01.1]} 11... Rb8 {[%clk 0:02:25]} 12. Ne4 {[%clk 0:01:21.8]} 12... Qd5
{[%clk 0:02:09]} 13. Ned2 {[%clk 0:01:06]} 13... Bd7 {[%clk 0:01:36.2]} 14. Rac1
{[%clk 0:01:03.5]} 14... Qxc4 {[%clk 0:01:26.9]} 15. Nxc4 {[%clk 0:01:03]} 15...
Rfc8 {[%clk 0:01:27.1]} 16. a3 {[%clk 0:00:58.8]} 16... Be8 {[%clk 0:01:20]} 17.
Kf2 {[%clk 0:00:57.2]} 17... Na7 {[%clk 0:01:09]} 18. Rfd1 {[%clk 0:00:50.3]}
18... c5 {[%clk 0:01:03.3]} 19. Nfe5 {[%clk 0:00:41.3]} 19... cxd4 {[%clk
0:01:00.8]} 20. exd4 {[%clk 0:00:39.8]} 20... Nb5 {[%clk 0:00:43.8]} 21. e3
{[%clk 0:00:37.9]} 21... Nd6 {[%clk 0:00:40.9]} 22. Nxd6 {[%clk 0:00:24.3]}
22... Bxd6 {[%clk 0:00:41.8]} 23. Nc4 {[%clk 0:00:24.4]} 23... Bc7 {[%clk
0:00:40.7]} 24. Nd2 {[%clk 0:00:10.6]} 24... Kf8 {[%clk 0:00:38.4]} 25. Ne4
{[%clk 0:00:08]} 25... b6 {[%clk 0:00:25.5]} 26. Rc3 {[%clk 0:00:08]} 26... Bd7
{[%clk 0:00:19.7]} 27. Rdc1 {[%clk 0:00:08]} 27... Bd8 {[%clk 0:00:20.3]} 28.
Nd6 {[%clk 0:00:04.7]} 28... Rxc3 {[%clk 0:00:20.1]} 29. Rxc3 {[%clk 0:00:05.6]}
29... Ke7 {[%clk 0:00:19.6]} 30. Nb7 {[%clk 0:00:03.6]} 30... Rc8 {[%clk
0:00:13]} 31. Nxd8 {[%clk 0:00:03.9]} 31... Kxd8 {[%clk 0:00:11.6]} 32. Rxc8+
{[%clk 0:00:03.2]} 32... Kxc8 {[%clk 0:00:12.5]} 33. e4 {[%clk 0:00:03.9]} 33...
Kc7 {[%clk 0:00:09.9]} 34. Ke3 {[%clk 0:00:04.8]} 34... f6 {[%clk 0:00:09.3]}
35. e5 {[%clk 0:00:04.6]} 35... a5 {[%clk 0:00:09]} 36. Be4 {[%clk 0:00:04.4]}
36... h6 {[%clk 0:00:08.9]} 37. h4 {[%clk 0:00:04.5]} 37... Bb5 {[%clk
0:00:08.7]} 38. Bg6 {[%clk 0:00:04.2]} 38... Kd7 {[%clk 0:00:09]} 39. Be4 {[%clk
0:00:04.1]} 39... Ke7 {[%clk 0:00:09.2]} 40. Bf3 {[%clk 0:00:04.4]} 40... Bc4
{[%clk 0:00:08.8]} 41. b4 {[%clk 0:00:04.3]} 41... axb4 {[%clk 0:00:08.8]} 42.
axb4 {[%clk 0:00:05.2]} 42... Bb5 {[%clk 0:00:09.5]} 43. Be4 {[%clk 0:00:05.3]}
43... Bc4 {[%clk 0:00:09.5]} 1/2-1/2

[Event "*** SCC Grand Prix: Titled Tuesday Blitz"]
[Site "Chess.com"]
[Date "2020.07.07"]
[Round "5"]
[White "SCIM"]
[Black "WashUntilHoles"]
[Result "0-1"]
[WhiteElo "2553"]
[BlackElo "2737"]
[TimeControl "180+1"]
[EndTime "10:56:02 PDT"]
[Termination "WashUntilHoles won on time"]

1. d4 {[%clk 0:02:34.5]} 1... Nf6 {[%clk 0:02:59.2]} 2. c4 {[%clk 0:02:34.8]}
2... g6 {[%clk 0:02:59.2]} 3. Nc3 {[%clk 0:02:34.5]} 3... Bg7 {[%clk 0:02:59.6]}
4. e4 {[%clk 0:02:34.3]} 4... d6 {[%clk 0:03:00.1]} 5. f3 {[%clk 0:02:34.8]}
5... O-O {[%clk 0:02:58.5]} 6. Bg5 {[%clk 0:02:35.4]} 6... c5 {[%clk 0:02:57.2]}
7. d5 {[%clk 0:02:35.1]} 7... e6 {[%clk 0:02:51.6]} 8. Qd2 {[%clk 0:02:35.3]}
8... h6 {[%clk 0:02:47.8]} 9. Be3 {[%clk 0:02:34.6]} 9... exd5 {[%clk 0:02:42]}
10. cxd5 {[%clk 0:02:35.5]} 10... Re8 {[%clk 0:02:40.8]} 11. Nge2 {[%clk
0:02:33.4]} 11... Nbd7 {[%clk 0:02:21.6]} 12. Nd1 {[%clk 0:02:24.8]} 12... b5
{[%clk 0:02:01.3]} 13. Nf2 {[%clk 0:02:21.1]} 13... Kh7 {[%clk 0:01:56.8]} 14.
Nf4 {[%clk 0:02:10]} 14... Rb8 {[%clk 0:01:46.1]} 15. Be2 {[%clk 0:02:06]} 15...
Ne5 {[%clk 0:01:46.1]} 16. b3 {[%clk 0:01:58]} 16... Bd7 {[%clk 0:01:37]} 17.
Rc1 {[%clk 0:01:55.8]} 17... a5 {[%clk 0:01:35.5]} 18. O-O {[%clk 0:01:54.5]}
18... b4 {[%clk 0:01:27.3]} 19. N4d3 {[%clk 0:01:40.8]} 19... Bb5 {[%clk
0:01:04.3]} 20. Nxe5 {[%clk 0:01:34.2]} 20... Rxe5 {[%clk 0:01:05.2]} 21. Bxb5
{[%clk 0:01:14.9]} 21... Rxb5 {[%clk 0:01:06.1]} 22. Kh1 {[%clk 0:01:06.4]}
22... Rb7 {[%clk 0:01:05.1]} 23. Rce1 {[%clk 0:00:55.2]} 23... Re8 {[%clk
0:01:03.7]} 24. Nd3 {[%clk 0:00:42.7]} 24... Rbe7 {[%clk 0:00:56.5]} 25. Nb2
{[%clk 0:00:41.4]} 25... Nd7 {[%clk 0:00:54.1]} 26. Nc4 {[%clk 0:00:40.5]} 26...
Bc3 {[%clk 0:00:48.8]} 27. Qc1 {[%clk 0:00:36.5]} 27... Bxe1 {[%clk 0:00:48.9]}
28. Rxe1 {[%clk 0:00:35.6]} 28... Ne5 {[%clk 0:00:48.5]} 29. Nxe5 {[%clk
0:00:25.1]} 29... Rxe5 {[%clk 0:00:49.4]} 30. Bxh6 {[%clk 0:00:25.3]} 30... g5
{[%clk 0:00:47.5]} 31. f4 {[%clk 0:00:23.4]} 31... Rxe4 {[%clk 0:00:47.3]} 32.
Rxe4 {[%clk 0:00:21.4]} 32... Rxe4 {[%clk 0:00:48.2]} 33. Bxg5 {[%clk
0:00:21.8]} 33... Qe8 {[%clk 0:00:44.9]} 34. Qc2 {[%clk 0:00:16.5]} 34... f5
{[%clk 0:00:41.9]} 35. h3 {[%clk 0:00:14.2]} 35... Qh5 {[%clk 0:00:19.6]} 36.
Kh2 {[%clk 0:00:12]} 36... Qe2 {[%clk 0:00:17.4]} 37. Qc1 {[%clk 0:00:08.2]}
37... Qf2 {[%clk 0:00:15.3]} 38. Qb1 {[%clk 0:00:05.1]} 38... Kg6 {[%clk
0:00:14.4]} 39. Qc1 {[%clk 0:00:01.2]} 39... Re1 {[%clk 0:00:10.1]} 0-1

[Event "*** SCC Grand Prix: Titled Tuesday Blitz"]
[Site "Chess.com"]
[Date "2020.07.07"]
[Round "5"]
[White "zajka-molotok"]
[Black "Andrei_Belozerov"]
[Result "0-1"]
[WhiteElo "2416"]
[BlackElo "2578"]
[TimeControl "180+1"]
[EndTime "10:56:02 PDT"]
[Termination "Andrei_Belozerov won by resignation"]

1. c4 {[%clk 0:03:00.9]} 1... e5 {[%clk 0:02:59.5]} 2. g3 {[%clk 0:02:58.2]}
2... c6 {[%clk 0:02:59.3]} 3. Bg2 {[%clk 0:02:52]} 3... d5 {[%clk 0:02:58.8]} 4.
cxd5 {[%clk 0:02:51.9]} 4... cxd5 {[%clk 0:02:59]} 5. d4 {[%clk 0:02:52.5]} 5...
e4 {[%clk 0:02:58.4]} 6. Nc3 {[%clk 0:02:45.7]} 6... Nf6 {[%clk 0:02:53.4]} 7.
Nh3 {[%clk 0:02:45.3]} 7... h6 {[%clk 0:02:42.9]} 8. O-O {[%clk 0:02:39.8]} 8...
Be7 {[%clk 0:02:30.2]} 9. Nf4 {[%clk 0:02:33.5]} 9... g5 {[%clk 0:02:29.7]} 10.
Nh3 {[%clk 0:02:32]} 10... Nc6 {[%clk 0:02:25.7]} 11. f3 {[%clk 0:02:24.3]}
11... exf3 {[%clk 0:02:13.8]} 12. exf3 {[%clk 0:02:25.2]} 12... O-O {[%clk
0:02:07.2]} 13. f4 {[%clk 0:02:05.4]} 13... g4 {[%clk 0:02:06.7]} 14. Nf2 {[%clk
0:02:05.4]} 14... Bf5 {[%clk 0:01:58.5]} 15. Be3 {[%clk 0:02:04.2]} 15... Re8
{[%clk 0:01:56]} 16. Nd3 {[%clk 0:02:00.5]} 16... Nb4 {[%clk 0:01:47.6]} 17.
Nxb4 {[%clk 0:01:52.6]} 17... Bxb4 {[%clk 0:01:46.9]} 18. Bf2 {[%clk 0:01:50.8]}
18... Bxc3 {[%clk 0:01:44.5]} 19. bxc3 {[%clk 0:01:50.4]} 19... Be4 {[%clk
0:01:45.2]} 20. Qd2 {[%clk 0:01:37]} 20... Bxg2 {[%clk 0:01:40.9]} 21. Kxg2
{[%clk 0:01:37]} 21... Ne4 {[%clk 0:01:41.5]} 22. Qd3 {[%clk 0:01:27.1]} 22...
Rc8 {[%clk 0:01:36.3]} 23. Rac1 {[%clk 0:01:24.5]} 23... Rc4 {[%clk 0:01:35.5]}
24. Rfe1 {[%clk 0:01:22]} 24... Qd7 {[%clk 0:01:34.3]} 25. Be3 {[%clk
0:01:20.1]} 25... Rec8 {[%clk 0:01:31.9]} 26. Bd2 {[%clk 0:01:16.1]} 26... Qf5
{[%clk 0:01:31.9]} 27. Re3 {[%clk 0:01:06.9]} 27... Kg7 {[%clk 0:01:26.7]} 28.
Be1 {[%clk 0:01:06.2]} 28... Kg6 {[%clk 0:01:26.1]} 29. Rb1 {[%clk 0:00:57.8]}
29... b6 {[%clk 0:01:25.5]} 30. Rb3 {[%clk 0:00:56.9]} 30... h5 {[%clk
0:01:24.1]} 31. Qe2 {[%clk 0:00:55.5]} 31... f6 {[%clk 0:01:18.6]} 32. Qd3
{[%clk 0:00:50.6]} 32... Nd6 {[%clk 0:01:15.1]} 33. Qe2 {[%clk 0:00:46.9]} 33...
Ne4 {[%clk 0:01:12.1]} 34. Qd3 {[%clk 0:00:46.4]} 34... Re8 {[%clk 0:01:10.6]}
35. Rb2 {[%clk 0:00:41.3]} 35... Nd6 {[%clk 0:01:02.2]} 36. Qe2 {[%clk
0:00:29.2]} 36... Rxe3 {[%clk 0:01:01.4]} 37. Qxe3 {[%clk 0:00:30.1]} 37... Qe4+
{[%clk 0:01:01.9]} 38. Kf2 {[%clk 0:00:24.8]} 38... Kf5 {[%clk 0:00:50.1]} 39.
Qd2 {[%clk 0:00:16.7]} 39... Rc8 {[%clk 0:00:48.2]} 40. Kg1 {[%clk 0:00:16.5]}
40... Re8 {[%clk 0:00:47.4]} 41. Bf2 {[%clk 0:00:16.6]} 41... Nc4 {[%clk
0:00:47.5]} 42. Qc1 {[%clk 0:00:15.1]} 42... Qd3 {[%clk 0:00:46.1]} 43. Rb1
{[%clk 0:00:14.2]} 43... Re2 {[%clk 0:00:45.1]} 44. Qd1 {[%clk 0:00:14]} 44...
Qf3 {[%clk 0:00:42.7]} 45. Qf1 {[%clk 0:00:13.4]} 45... Nd2 {[%clk 0:00:42.1]}
46. Qg2 {[%clk 0:00:12.1]} 46... Qxg2+ {[%clk 0:00:41.1]} 47. Kxg2 {[%clk
0:00:13]} 47... Ne4 {[%clk 0:00:41.7]} 48. Rf1 {[%clk 0:00:11.8]} 48... Rxa2
{[%clk 0:00:42.1]} 49. Kg1 {[%clk 0:00:11.5]} 49... Nxc3 {[%clk 0:00:42]} 50.
Be3 {[%clk 0:00:11]} 50... Ke4 {[%clk 0:00:40.3]} 51. Bc1 {[%clk 0:00:10.3]}
51... Ne2+ {[%clk 0:00:39.6]} 52. Kh1 {[%clk 0:00:10.2]} 52... Ra1 {[%clk
0:00:39.3]} 0-1

[Event "*** SCC Grand Prix: Titled Tuesday Blitz"]
[Site "Chess.com"]
[Date "2020.07.07"]
[Round "5"]
[White "SergeyKarjakin"]
[Black "Dr-Bassem"]
[Result "1-0"]
[WhiteElo "2973"]
[BlackElo "2817"]
[TimeControl "180+1"]
[EndTime "10:56:03 PDT"]
[Termination "SergeyKarjakin won on time"]

1. e4 {[%clk 0:03:00.9]} 1... e5 {[%clk 0:02:58.7]} 2. Nf3 {[%clk 0:03:00.3]}
2... Nc6 {[%clk 0:02:59.3]} 3. Bc4 {[%clk 0:03:00.6]} 3... Nf6 {[%clk
0:02:58.8]} 4. d3 {[%clk 0:03:00.1]} 4... h6 {[%clk 0:02:58.6]} 5. O-O {[%clk
0:03:00.5]} 5... d6 {[%clk 0:02:58.2]} 6. d4 {[%clk 0:02:26.6]} 6... Bg4 {[%clk
0:02:45.9]} 7. dxe5 {[%clk 0:02:18.6]} 7... dxe5 {[%clk 0:02:41]} 8. Qxd8+
{[%clk 0:02:15.4]} 8... Rxd8 {[%clk 0:02:41.9]} 9. Bb5 {[%clk 0:02:15.4]} 9...
Bxf3 {[%clk 0:02:34.3]} 10. gxf3 {[%clk 0:02:15]} 10... Rd6 {[%clk 0:02:27.7]}
11. c3 {[%clk 0:02:03]} 11... a6 {[%clk 0:02:24.7]} 12. Ba4 {[%clk 0:02:02.3]}
12... Nh5 {[%clk 0:02:20.5]} 13. Be3 {[%clk 0:01:45.5]} 13... Be7 {[%clk
0:02:02.9]} 14. Nd2 {[%clk 0:01:44.1]} 14... b5 {[%clk 0:02:01.1]} 15. Bc2
{[%clk 0:01:37.2]} 15... O-O {[%clk 0:02:01.4]} 16. Rfd1 {[%clk 0:01:32.1]}
16... Bg5 {[%clk 0:01:32.7]} 17. Nb3 {[%clk 0:01:24.9]} 17... Rg6 {[%clk
0:00:59.4]} 18. Kf1 {[%clk 0:01:24]} 18... Bf4 {[%clk 0:00:55]} 19. Rd7 {[%clk
0:01:18.2]} 19... Nd8 {[%clk 0:00:45.2]} 20. Ke2 {[%clk 0:01:01.4]} 20... Ne6
{[%clk 0:00:43.8]} 21. Rh1 {[%clk 0:01:00.3]} 21... Bxe3 {[%clk 0:00:33.9]} 22.
fxe3 {[%clk 0:01:00.2]} 22... Rg2+ {[%clk 0:00:32.9]} 23. Kd1 {[%clk 0:01:00.2]}
23... c5 {[%clk 0:00:30.9]} 24. Rd2 {[%clk 0:00:51.7]} 24... Rxd2+ {[%clk
0:00:22.5]} 25. Nxd2 {[%clk 0:00:52.6]} 25... Rd8 {[%clk 0:00:19.2]} 26. Ke2
{[%clk 0:00:52.6]} 26... c4 {[%clk 0:00:18.5]} 27. a4 {[%clk 0:00:52]} 27... Nc5
{[%clk 0:00:15.8]} 28. axb5 {[%clk 0:00:51.2]} 28... axb5 {[%clk 0:00:16.7]} 29.
Ra1 {[%clk 0:00:51.1]} 29... Nf6 {[%clk 0:00:13.1]} 30. Ra5 {[%clk 0:00:48.8]}
30... Rb8 {[%clk 0:00:13.4]} 31. Nxc4 {[%clk 0:00:43.5]} 31... bxc4 {[%clk
0:00:12.9]} 32. Rxc5 {[%clk 0:00:43.7]} 32... Rxb2 {[%clk 0:00:13.5]} 33. Kd2
{[%clk 0:00:44.1]} 33... Ra2 {[%clk 0:00:07.7]} 34. Rxe5 {[%clk 0:00:41.1]}
34... Ra1 {[%clk 0:00:07.8]} 35. Rc5 {[%clk 0:00:39.5]} 35... g5 {[%clk
0:00:06.6]} 36. e5 {[%clk 0:00:32.3]} 36... Nd7 {[%clk 0:00:06.6]} 37. Rc8+
{[%clk 0:00:31.8]} 37... Kg7 {[%clk 0:00:06.4]} 38. e6 {[%clk 0:00:30.9]} 38...
Nf6 {[%clk 0:00:01.7]} 39. e7 {[%clk 0:00:29.9]} 39... Rh1 {[%clk 0:00:01.7]}
40. Bf5 {[%clk 0:00:16.8]} 40... Rxh2+ {[%clk 0:00:01.9]} 41. Ke1 {[%clk
0:00:17.4]} 41... Rh1+ {[%clk 0:00:01.4]} 42. Kf2 {[%clk 0:00:17.2]} 42... Rc1
{[%clk 0:00:01.8]} 43. e4 {[%clk 0:00:16.8]} 1-0

[Event "*** SCC Grand Prix: Titled Tuesday Blitz"]
[Site "Chess.com"]
[Date "2020.07.07"]
[Round "5"]
[White "Danfii"]
[Black "tylityli"]
[Result "0-1"]
[WhiteElo "2341"]
[BlackElo "2182"]
[TimeControl "180+1"]
[EndTime "10:56:03 PDT"]
[Termination "tylityli won on time"]

1. e4 {[%clk 0:03:00.9]} 1... e5 {[%clk 0:02:58.7]} 2. Nf3 {[%clk 0:03:00.5]}
2... Nc6 {[%clk 0:02:58.9]} 3. Bc4 {[%clk 0:03:00]} 3... Nf6 {[%clk 0:02:58.6]}
4. d3 {[%clk 0:03:00]} 4... Be7 {[%clk 0:02:58.2]} 5. O-O {[%clk 0:02:59.1]}
5... O-O {[%clk 0:02:58.3]} 6. Re1 {[%clk 0:02:58.8]} 6... d6 {[%clk 0:02:58.5]}
7. a4 {[%clk 0:02:58.4]} 7... Be6 {[%clk 0:02:49.9]} 8. Nbd2 {[%clk 0:02:57.8]}
8... Bxc4 {[%clk 0:02:45.9]} 9. Nxc4 {[%clk 0:02:58.7]} 9... h6 {[%clk
0:02:44.6]} 10. h3 {[%clk 0:02:57.9]} 10... a6 {[%clk 0:02:44.2]} 11. c3 {[%clk
0:02:57.6]} 11... b5 {[%clk 0:02:42.6]} 12. Ne3 {[%clk 0:02:56.9]} 12... Qd7
{[%clk 0:02:39.5]} 13. Nd5 {[%clk 0:02:53.2]} 13... Rfb8 {[%clk 0:02:25.1]} 14.
Nxe7+ {[%clk 0:02:46.4]} 14... Nxe7 {[%clk 0:02:19.6]} 15. d4 {[%clk 0:02:46.1]}
15... Qe6 {[%clk 0:02:15.1]} 16. Qc2 {[%clk 0:02:35]} 16... Ng6 {[%clk
0:02:12.9]} 17. d5 {[%clk 0:02:24]} 17... Qd7 {[%clk 0:02:11.6]} 18. Be3 {[%clk
0:02:24]} 18... bxa4 {[%clk 0:02:02.1]} 19. Re2 {[%clk 0:02:02.4]} 19... Rb3
{[%clk 0:02:00.2]} 20. Nd2 {[%clk 0:01:58.2]} 20... Rb5 {[%clk 0:01:55.2]} 21.
Nc4 {[%clk 0:01:45.1]} 21... Rb3 {[%clk 0:01:48.6]} 22. f3 {[%clk 0:01:33.5]}
22... Rab8 {[%clk 0:01:43.2]} 23. Na5 {[%clk 0:01:28.6]} 23... R3b5 {[%clk
0:01:38.2]} 24. Nc6 {[%clk 0:01:21.6]} 24... Ra8 {[%clk 0:01:29.6]} 25. Rxa4
{[%clk 0:01:18.7]} 25... Ne7 {[%clk 0:01:22.5]} 26. Rc4 {[%clk 0:01:10.9]} 26...
Nh5 {[%clk 0:01:13.3]} 27. Kh2 {[%clk 0:01:04.2]} 27... g5 {[%clk 0:01:11.7]}
28. Qa4 {[%clk 0:00:57.9]} 28... Nf4 {[%clk 0:01:06.4]} 29. b4 {[%clk
0:00:49.6]} 29... Nxe2 {[%clk 0:01:04.9]} 30. g3 {[%clk 0:00:42.7]} 30... Ng6
{[%clk 0:00:51]} 31. Qc2 {[%clk 0:00:38]} 31... Nef4 {[%clk 0:00:43.9]} 32. gxf4
{[%clk 0:00:38.9]} 32... gxf4 {[%clk 0:00:43.8]} 33. Bf2 {[%clk 0:00:37.5]}
33... Ne7 {[%clk 0:00:42.3]} 34. Qa4 {[%clk 0:00:34]} 34... Kh7 {[%clk
0:00:38.2]} 35. Nxe7 {[%clk 0:00:32.9]} 35... Qxe7 {[%clk 0:00:37.9]} 36. Rc6
{[%clk 0:00:33.8]} 36... Rg8 {[%clk 0:00:31.8]} 37. h4 {[%clk 0:00:16.5]} 37...
Qf6 {[%clk 0:00:30.9]} 38. Qa2 {[%clk 0:00:14]} 38... Qg6 {[%clk 0:00:30.6]} 39.
Ba7 {[%clk 0:00:05.7]} 39... Rb7 {[%clk 0:00:29.7]} 40. Rxa6 {[%clk 0:00:03.1]}
40... Qg3+ {[%clk 0:00:28.5]} 41. Kh1 {[%clk 0:00:02.9]} 41... Qxf3+ {[%clk
0:00:27.9]} 42. Kh2 {[%clk 0:00:03.2]} 42... Qg3+ {[%clk 0:00:26.8]} 43. Kh1
{[%clk 0:00:03.6]} 43... Qxh4+ {[%clk 0:00:26.9]} 44. Qh2 {[%clk 0:00:02.4]}
44... Qe1+ {[%clk 0:00:26.6]} 45. Bg1 {[%clk 0:00:02.1]} 45... Qxe4+ {[%clk
0:00:26.1]} 0-1